lending/lending_fUSD_20250808
["ID","MTS","AMOUNT","RATE_DAILY","PERIOD"]
[377916413,1754613137374,-426.59,0.00021643,2]
[377916414,1754613137385,-446.1,0.00021643,2]
[377916415,1754613137395,-1061.62,0.00021643,2]
[377916416,1754613137405,-2286.48,0.00021643,2]
[377916417,1754613137414,-1419.58,0.00021643,2]
[377916418,1754613137424,-608.07,0.00021643,2]
[377916419,1754613137434,-1349.34,0.00021643,2]
[377916420,1754613137443,-400.0,0.00021643,2]
[377916421,1754613137453,-1214.9,0.00021643,2]
[377916422,1754613137463,-994.63,0.00021643,2]
[377916423,1754613137472,-2503.56,0.00021643,2]
[377916424,1754613137482,-400.0,0.00021643,2]
[377916425,1754613137491,-668.68,0.00021643,2]
[377916426,1754613137500,-2034.76,0.00021643,2]
[377916427,1754613137510,-578.7,0.00021643,2]
[377916428,1754613137519,-1276.94,0.00021643,2]
[377916429,1754613137529,-400.0,0.00021643,2]
[377916430,1754613137538,-1528.92,0.00021643,2]
[377916431,1754613137547,-1646.26,0.00021643,2]
[377916432,1754613137557,-400.0,0.00021643,2]
[377916433,1754613137567,-1889.62,0.00021643,2]
[377916434,1754613137576,-1501.0,0.00021643,2]
[377916435,1754613137586,-1025.64,0.00021643,2]
[377916436,1754613137596,-2128.65,0.00021643,2]
[377916437,1754613137605,-1492.79,0.00021643,2]
[377916438,1754613137616,-547.41,0.00021643,2]
[377916439,1754613137626,-1086.24,0.00021643,2]
[377916440,1754613137636,-278.52504142,0.00021643,2]
[377916441,1754613137646,-400.0,0.00021643,2]
[377916442,1754613137656,-607.0,0.00021643,2]
[377916443,1754613137665,-1345.75,0.00021643,2]
[377916444,1754613137675,-420.32,0.00021643,2]
[377916445,1754613137684,-1120.37,0.00021643,2]
[377916446,1754613137694,-489.48,0.00021643,2]
[377916447,1754613137704,-1434.86,0.00021643,2]
[377916448,1754613137714,-1951.53,0.00021643,2]
[377916449,1754613137724,-400.0,0.00021643,2]
[377916450,1754613137733,-2325.69,0.00021643,2]
[377916451,1754613137743,-917.26,0.00021643,2]
[377916452,1754613137753,-1376.02,0.00021643,2]
[377916453,1754613137763,-1065.9,0.00021643,2]
[377916454,1754613137773,-1350.78,0.00021643,2]
[377916455,1754613137783,-1151.09,0.00021643,2]
[377916456,1754613137794,-451.49,0.00021643,2]
[377916457,1754613137803,-400.0,0.00021643,2]
[377916458,1754613137814,-400.0,0.00021643,2]
[377916459,1754613137824,-1657.63,0.00021643,2]
[377916460,1754613137834,-1848.96,0.00021643,2]
[377916461,1754613137846,-1409.09,0.00021643,2]
[377916462,1754613137857,-400.0,0.00021643,2]
[377916463,1754613137870,-400.0,0.00021643,2]
[377916464,1754613137882,-1826.78,0.00021643,2]
[377916465,1754613137892,-400.0,0.00021643,2]
[377916466,1754613137903,-1400.02,0.00021643,2]
[377916467,1754613137913,-2074.91,0.00021643,2]
[377916468,1754613137922,-608.66,0.00021643,2]
[377916469,1754613137931,-400.0,0.00021643,2]
[377916470,1754613137940,-1588.59,0.00021643,2]
[377916471,1754613137950,-2222.15,0.00021643,2]
[377916472,1754613137960,-1481.84,0.00021643,2]
[377916473,1754613137970,-400.0,0.00021643,2]
[377916474,1754613137980,-1119.1,0.00021643,2]
[377916475,1754613137990,-880.06,0.00021643,2]
[377916476,1754613137999,-1688.74,0.00021643,2]
[377916477,1754613138010,-1345.58,0.00021643,2]
[377916478,1754613138020,-1888.11,0.00021643,2]
[377916479,1754613138030,-2547.87,0.00021643,2]
[377916480,1754613138039,-400.0,0.00021643,2]
[377916481,1754613138049,-1803.23,0.00021643,2]
[377916482,1754613138059,-3068.61,0.00021643,2]
[377916483,1754613138069,-3553.23,0.00021643,2]
[377916484,1754613138079,-846.92,0.00021643,2]
[377916485,1754613138089,-400.0,0.00021643,2]
[377916486,1754613138100,-1278.15,0.00021643,2]
[377916487,1754613138110,-1857.98,0.00021643,2]
[377916488,1754613138119,-2016.9,0.00021643,2]
[377916489,1754613138129,-2027.95,0.00021643,2]
[377916490,1754613138139,-1218.73,0.00021643,2]
[377916491,1754613138149,-2106.04,0.00021643,2]
[377916492,1754613138159,-1934.76,0.00021643,2]
[377916493,1754613138169,-633.24,0.00021643,2]
[377916494,1754613138179,-881.02,0.00021643,2]
[377916495,1754613138188,-1410.86,0.00021643,2]
[377916496,1754613138198,-400.0,0.00021643,2]
[377916497,1754613138208,-1461.11,0.00021643,2]
[377916498,1754613138217,-2341.65,0.00021643,2]
[377916499,1754613138227,-400.0,0.00021643,2]
[377916500,1754613138237,-1720.55,0.00021643,2]
[377916501,1754613138248,-1452.03,0.00021643,2]
[377916502,1754613138258,-1620.97,0.00021643,2]
[377916503,1754613138269,-496.68,0.00021643,2]
[377916504,1754613138279,-400.0,0.00021643,2]
[377916505,1754613138289,-1617.17,0.00021643,2]
[377916506,1754613138299,-2144.18,0.00021643,2]
[377916507,1754613138309,-2107.78,0.00021643,2]
[377916508,1754613138319,-634.15,0.00021643,2]
[377916509,1754613138329,-749.36,0.00021643,2]
[377916510,1754613138340,-558.88,0.00021643,2]
[377916511,1754613138350,-400.0,0.00021643,2]
[377916512,1754613138360,-2615.62,0.00021643,2]
[377916513,1754613138370,-1657.01,0.00021643,2]
[377916514,1754613138380,-1646.42,0.00021643,2]
[377916515,1754613138391,-1193.46,0.00021643,2]
[377916516,1754613138401,-2388.63,0.00021643,2]
[377916517,1754613138411,-400.0,0.00021643,2]
[377916518,1754613138420,-1288.88,0.00021643,2]
[377916519,1754613138430,-2311.16,0.00021643,2]
[377916520,1754613138441,-2350.74,0.00021643,2]
[377916521,1754613138451,-2136.59,0.00021643,2]
[377916522,1754613138460,-1822.62,0.00021643,2]
[377916523,1754613138471,-442.84652753,0.00021643,2]
[377916524,1754613138480,-612.27,0.00021643,2]
[377916525,1754613138496,-1810.11,0.00021643,2]
[377916526,1754613138506,-1537.46,0.00021643,2]
[377916527,1754613138516,-1369.16,0.00021643,2]
[377916528,1754613138526,-511.54,0.00021643,2]
[377916529,1754613138536,-482.95,0.00021643,2]
[377916530,1754613138546,-400.0,0.00021643,2]
[377916531,1754613138556,-1248.2,0.00021643,2]
[377916532,1754613138566,-1594.51,0.00021643,2]
[377916533,1754613138576,-1678.28,0.00021643,2]
[377916534,1754613138586,-845.84,0.00021643,2]
[377916535,1754613138595,-5670.63,0.00021643,2]
[377916536,1754613138605,-483.64,0.00021643,2]
[377916537,1754613138616,-1205.01,0.00021643,2]
[377916538,1754613138626,-893.25,0.00021643,2]
[377916539,1754613138637,-663.05,0.00021643,2]
[377916540,1754613138647,-1256.8,0.00021643,2]
[377916541,1754613138657,-2578.27,0.00021643,2]
[377916542,1754613138667,-1440.32,0.00021643,2]
[377916543,1754613138678,-1244.17,0.00021643,2]
[377916544,1754613138688,-2047.45,0.00021643,2]
[377916545,1754613138697,-738.95,0.00021643,2]
[377916546,1754613138707,-575.03,0.00021643,2]
[377916547,1754613138717,-2097.6,0.00021643,2]
[377916548,1754613138727,-500.07,0.00021643,2]
[377916549,1754613138737,-422.96,0.00021643,2]
[377916550,1754613138747,-400.0,0.00021643,2]
[377916551,1754613138757,-759.15,0.00021643,2]
[377916552,1754613138767,-1321.01,0.00021643,2]
[377916553,1754613138777,-400.0,0.00021643,2]
[377916554,1754613138789,-1757.73,0.00021643,2]
[377916555,1754613138802,-1316.97,0.00021643,2]
[377916556,1754613138816,-1208.59,0.00021643,2]
[377916557,1754613138825,-454.26,0.00021643,2]
[377916558,1754613138835,-3377.08,0.00021643,2]
[377916559,1754613138846,-1895.55,0.00021643,2]
[377916560,1754613138857,-671.01,0.00021643,2]
[377916561,1754613138868,-1206.78,0.00021643,2]
[377916562,1754613138879,-1065.6,0.00021643,2]
[377916563,1754613138890,-2465.13,0.00021643,2]
[377916564,1754613138901,-400.0,0.00021643,2]
[377916565,1754613138912,-930.4,0.00021643,2]
[377916566,1754613138923,-2359.49,0.00021643,2]
[377916567,1754613138934,-916.62,0.00021643,2]
[377916568,1754613138949,-1712.73,0.00021643,2]
[377916569,1754613138959,-1926.69,0.00021643,2]
[377916570,1754613138970,-831.18,0.00021643,2]
[377916571,1754613138981,-458.34,0.00021643,2]
[377916572,1754613138991,-1982.51,0.00021643,2]
[377916573,1754613139001,-1225.08,0.00021643,2]
[377916574,1754613139011,-2026.14,0.00021643,2]
[377916575,1754613139021,-785.6,0.00021643,2]
[377916576,1754613139031,-1259.99,0.00021643,2]
[377916577,1754613139041,-1138.89,0.00021643,2]
[377916578,1754613139052,-821.3,0.00021643,2]
[377916579,1754613139062,-1835.44,0.00021643,2]
[377916580,1754613139072,-1205.32,0.00021643,2]
[377916581,1754613139083,-517.59,0.00021643,2]
[377916582,1754613139093,-1444.0,0.00021643,2]
[377916583,1754613139103,-2627.0,0.00021643,2]
[377916584,1754613139113,-1785.88,0.00021643,2]
[377916585,1754613139124,-720.69,0.00021643,2]
[377916586,1754613139135,-400.0,0.00021643,2]
[377916587,1754613139146,-782.04,0.00021643,2]
[377916588,1754613139156,-1057.29,0.00021643,2]
[377916589,1754613139166,-400.0,0.00021643,2]
[377916590,1754613139177,-594.32,0.00021643,2]
[377916591,1754613139187,-737.52,0.00021643,2]
[377916592,1754613139197,-760.17,0.00021643,2]
[377916593,1754613139308,-1256.19,0.00021643,2]
[377916594,1754613139318,-2043.3,0.00021643,2]
[377916595,1754613139328,-1213.52,0.00021643,2]
[377916596,1754613139337,-1326.52,0.00021643,2]
[377916597,1754613139347,-400.0,0.00021643,2]
[377916598,1754613139356,-400.0,0.00021643,2]
[377916599,1754613139366,-1429.55,0.00021643,2]
[377916600,1754613139375,-400.0,0.00021643,2]
[377916601,1754613139387,-718.93,0.00021643,2]
[377916602,1754613139396,-2287.32,0.00021643,2]
[377916603,1754613139406,-1573.48,0.00021643,2]
[377916604,1754613139416,-1328.2,0.00021643,2]
[377916605,1754613139426,-1087.69,0.00021643,2]
[377916606,1754613139435,-400.0,0.00021643,2]
[377916607,1754613139445,-400.0,0.00021643,2]
[377916608,1754613139455,-2952.54,0.00021643,2]
[377916609,1754613139464,-1998.91,0.00021643,2]
[377916610,1754613139474,-1291.71,0.00021643,2]
[377916611,1754613139484,-507.81,0.00021643,2]
[377916612,1754613139494,-1129.91,0.00021643,2]
[377916613,1754613139503,-2109.97,0.00021643,2]
[377916614,1754613139514,-1425.93,0.00021643,2]
[377916615,1754613139524,-921.79,0.00021643,2]
[377916616,1754613139534,-780.96,0.00021643,2]
[377916617,1754613139544,-662.71,0.00021643,2]
[377916618,1754613139553,-1165.14,0.00021643,2]
[377916619,1754613139563,-1164.62,0.00021643,2]
[377916620,1754613139573,-2405.69,0.00021643,2]
[377916621,1754613139582,-620.84,0.00021643,2]
[377916622,1754613139593,-918.26,0.00021643,2]
[377916623,1754613139602,-1258.15,0.00021643,2]
[377916624,1754613139612,-2947.95,0.00021643,2]
[377916625,1754613139622,-876.19,0.00021643,2]
[377916626,1754613139633,-1553.23,0.00021643,2]
[377916627,1754613139643,-478.79,0.00021643,2]
[377916628,1754613139652,-1217.16,0.00021643,2]
[377916629,1754613139662,-599.75,0.00021643,2]
[377916630,1754613139672,-2199.42,0.00021643,2]
[377916631,1754613139682,-21934.36,0.00021643,2]
[377916632,1754613139691,-2212.98,0.00021643,2]
[377916633,1754613139701,-1718.94,0.00021643,2]
[377916634,1754613139711,-1128.21,0.00021643,2]
[377916635,1754613139721,-2805.22,0.00021643,2]
[377916636,1754613139731,-400.0,0.00021643,2]
[377916637,1754613139742,-454.14,0.00021643,2]
[377916638,1754613139752,-400.0,0.00021643,2]
[377916639,1754613139764,-913.11,0.00021643,2]
[377916640,1754613139775,-484.16,0.00021643,2]
[377916641,1754613139785,-1717.22,0.00021643,2]
[377916642,1754613139795,-2525.21,0.00021643,2]
[377916643,1754613139805,-674.02,0.00021643,2]
[377916644,1754613139815,-400.0,0.00021643,2]
[377916645,1754613139825,-3589.91,0.00021643,2]
[377916646,1754613139835,-445.14,0.00021643,2]
[377916647,1754613139844,-1638.11,0.00021643,2]
[377916648,1754613139854,-1662.56,0.00021643,2]
[377916649,1754613139868,-820.59,0.00021643,2]
[377916650,1754613139877,-400.0,0.00021643,2]
[377916651,1754613139890,-1890.31,0.00021643,2]
[377916652,1754613139900,-1814.44,0.00021643,2]
[377916653,1754613139911,-600.51,0.00021643,2]
[377916654,1754613139925,-674.63,0.00021643,2]
[377916655,1754613139938,-2569.88,0.00021643,2]
[377916656,1754613139948,-400.0,0.00021643,2]
[377916657,1754613139958,-400.0,0.00021643,2]
[377916658,1754613139969,-2338.84,0.00021643,2]
[377916659,1754613139978,-1179.5,0.00021643,2]
[377916660,1754613139988,-400.0,0.00021643,2]
[377916661,1754613139998,-2335.94,0.00021643,2]
[377916662,1754613140008,-5688.95,0.00021643,2]
[377916663,1754613140018,-1234.92,0.00021643,2]
[377916664,1754613140027,-400.0,0.00021643,2]
[377916665,1754613140037,-862.72,0.00021643,2]
[377916666,1754613140046,-1880.9,0.00021643,2]
[377916667,1754613140056,-1651.16,0.00021643,2]
[377916668,1754613140066,-400.0,0.00021643,2]
[377916669,1754613140075,-707.51,0.00021643,2]
[377916670,1754613140085,-480.51,0.00021643,2]
[377916671,1754613140095,-1525.3,0.00021643,2]
[377916672,1754613140105,-492.44,0.00021643,2]
[377916673,1754613140114,-37417.1392958,0.00021643,2]
[377916674,1754613140124,-5000.0,0.0002165,2]
[377916675,1754613140136,-595.13,0.00021657,2]
[377916676,1754613140145,-25000.0,0.00021693,2]
[377916677,1754613140155,-150.51,0.00021715,2]
[377916678,1754613140164,-177.05,0.00021735,2]
[377916679,1754613140174,-595.13,0.00021737,2]
[377916680,1754613140183,-7742.13,0.00021785,2]
[377916681,1754613140192,-12301.71189359,0.0002179,7]
[377916682,1754613140202,-1594.61,0.00021794,2]
[377916683,1754613140212,-160.0,0.00021805,2]
[377916684,1754613140221,-600.0,0.00021807,2]
[377916685,1754613140230,-2521.15,0.0002181,2]
[377916686,1754613140240,-1891.91,0.00021817,2]
[377916687,1754613140249,-150.0,0.0002185,5]
[377916688,1754613140259,-303.77,0.00021866,2]
[377916689,1754613140268,-2442.29,0.00021897,2]
[377916690,1754613140277,-400.0,0.00021899,2]
[377916691,1754613140287,-226.2770895,0.000219,2]
[377916692,1754613140296,-1770.72,0.00021904,2]
[377916693,1754613140305,-2033.74,0.00021904,2]
[377916694,1754613140315,-400.0,0.00021904,2]
[377916695,1754613140324,-1928.95,0.00021904,2]
[377916696,1754613140333,-1964.46,0.00021904,2]
[377916697,1754613140342,-1517.59,0.00021904,2]
[377916698,1754613140352,-2517.35,0.00021904,2]
[377916699,1754613140361,-3417.84,0.00021904,2]
[377916700,1754613140371,-3000.0,0.00021912,2]
[377916701,1754613140382,-3000.0,0.00021912,2]
[377916702,1754613140391,-37417.1392958,0.00021917,2]
[377916703,1754613140400,-37417.1392958,0.00021917,2]
[377916704,1754613140409,-37417.1392958,0.00021917,2]
[377916705,1754613140419,-185.81217161,0.00021917,2]
[377916706,1754613140428,-185.81217161,0.00021917,2]
[377916707,1754613140438,-400.0,0.00021917,2]
[377916708,1754613140447,-400.0,0.00021917,2]
[377916709,1754613140456,-413.9,0.00021917,2]
[377916710,1754613140465,-491.72,0.00021917,2]
[377916711,1754613140475,-400.0,0.00021917,2]
[377916712,1754613140484,-1398.87,0.00021917,2]
[377916713,1754613140493,-1031.25,0.00021917,2]
[377916714,1754613140502,-400.0,0.00021917,2]
[377916715,1754613140511,-400.0,0.00021917,2]
[377916716,1754613140520,-565.33,0.00021917,2]
[377916717,1754613140530,-984.93,0.00021917,2]
[377916718,1754613140539,-1073.05,0.00021917,2]
[377916719,1754613140548,-1178.77,0.00021917,2]
[377916720,1754613140557,-400.0,0.00021917,2]
[377916721,1754613140567,-828.34,0.00021917,2]
[377916722,1754613140576,-400.0,0.00021917,2]
[377916723,1754613140586,-400.0,0.00021917,2]
[377916724,1754613140595,-400.0,0.00021917,2]
[377916725,1754613140604,-400.0,0.00021917,2]
[377916726,1754613140614,-812.28,0.00021917,2]
[377916727,1754613140624,-927.28,0.00021917,2]
[377916728,1754613140635,-400.0,0.00021917,2]
[377916729,1754613140644,-400.0,0.00021917,2]
[377916730,1754613140653,-953.96,0.00021917,2]
[377916731,1754613140662,-400.0,0.00021917,2]
[377916732,1754613140672,-400.0,0.00021917,2]
[377916733,1754613140682,-861.71,0.00021917,2]
[377916734,1754613140691,-802.6,0.00021917,2]
[377916735,1754613140701,-400.0,0.00021917,2]
[377916736,1754613140711,-580.75,0.00021917,2]
[377916737,1754613140720,-400.0,0.00021917,2]
[377916738,1754613140730,-571.8,0.00021917,2]
[377916739,1754613140740,-400.0,0.00021917,2]
[377916740,1754613140749,-483.19017607,0.00021917,2]
[377916741,1754613140759,-1017.49,0.00021917,2]
[377916742,1754613140769,-480.71,0.00021917,2]
[377916743,1754613140778,-400.0,0.00021917,2]
[377916744,1754613140788,-403.89,0.00021917,2]
[377916745,1754613140798,-400.0,0.00021917,2]
[377916746,1754613140807,-400.0,0.00021917,2]
[377916747,1754613140817,-400.0,0.00021917,2]
[377916748,1754613140827,-1379.73,0.00021917,2]
[377916749,1754613140837,-1290.36,0.00021917,2]
[377916750,1754613140847,-400.0,0.00021917,2]
[377916751,1754613140857,-400.0,0.00021917,2]
[377916752,1754613140870,-560.12,0.00021917,2]
[377916753,1754613140879,-1326.45,0.00021917,2]
[377916754,1754613140894,-1037.58,0.00021917,2]
[377916755,1754613140904,-400.0,0.00021917,2]
[377916756,1754613140915,-570.53,0.00021917,2]
[377916757,1754613140925,-551.88,0.00021917,2]
[377916758,1754613140935,-624.79,0.00021917,2]
[377916759,1754613140946,-459.48,0.00021917,2]
[377916760,1754613140956,-912.6,0.00021917,2]
[377916761,1754613140966,-453.86,0.00021917,2]
[377916762,1754613140976,-845.43,0.00021917,2]
[377916763,1754613140986,-610.33,0.00021917,2]
[377916764,1754613140996,-1543.29,0.00021917,2]
[377916765,1754613141006,-802.15,0.00021917,2]
[377916766,1754613141016,-405.06,0.00021917,2]
[377916767,1754613141025,-400.0,0.00021917,2]
[377916768,1754613141036,-400.0,0.00021917,2]
[377916769,1754613141046,-1052.0,0.00021917,2]
[377916770,1754613141055,-1340.86,0.00021917,2]
[377916771,1754613141065,-400.0,0.00021917,2]
[377916772,1754613141075,-903.46,0.00021917,2]
[377916773,1754613141085,-950.22,0.00021917,2]
[377916774,1754613141096,-1188.56,0.00021917,2]
[377916775,1754613141105,-400.0,0.00021917,2]
[377916776,1754613141115,-511.85,0.00021917,2]
[377916777,1754613141126,-502.43,0.00021917,2]
[377916778,1754613141138,-469.08,0.00021917,2]
[377916779,1754613141148,-431.81,0.00021917,2]
[377916780,1754613141158,-538.68,0.00021917,2]
[377916781,1754613141168,-415.03,0.00021917,2]
[377916782,1754613141177,-400.0,0.00021917,2]
[377916783,1754613141187,-400.0,0.00021917,2]
[377916784,1754613141196,-400.0,0.00021917,2]
[377916785,1754613141206,-652.84,0.00021917,2]
[377916786,1754613141216,-448.34,0.00021917,2]
[377916787,1754613141226,-613.1,0.00021917,2]
[377916788,1754613141236,-400.0,0.00021917,2]
[377916789,1754613141246,-400.0,0.00021917,2]
[377916790,1754613141255,-1054.59,0.00021917,2]
[377916791,1754613141265,-606.31,0.00021917,2]
[377916792,1754613141275,-468.72,0.00021917,2]
[377916793,1754613141285,-400.0,0.00021917,2]
[377916794,1754613141295,-560.03,0.00021917,2]
[377916795,1754613141305,-400.0,0.00021917,2]
[377916796,1754613141315,-1129.63,0.00021917,2]
[377916797,1754613141325,-744.37,0.00021917,2]
[377916798,1754613141335,-771.07,0.00021917,2]
[377916799,1754613141345,-1372.41,0.00021917,2]
[377916800,1754613141355,-830.78,0.00021917,2]
[377916801,1754613141366,-643.55,0.00021917,2]
[377916802,1754613141375,-400.0,0.00021917,2]
[377916803,1754613141387,-1290.29,0.00021917,2]
[377916804,1754613141396,-463.32,0.00021917,2]
[377916805,1754613141406,-400.0,0.00021917,2]
[377916806,1754613141416,-400.0,0.00021917,2]
[377916807,1754613141426,-400.0,0.00021917,2]
[377916808,1754613141436,-400.0,0.00021917,2]
[377916809,1754613141446,-400.0,0.00021917,2]
[377916810,1754613141457,-792.51,0.00021917,2]
[377916811,1754613141467,-720.13,0.00021917,2]
[377916812,1754613141476,-526.14,0.00021917,2]
[377916813,1754613141486,-690.34,0.00021917,2]
[377916814,1754613141495,-767.24,0.00021917,2]
[377916815,1754613141505,-784.03,0.00021917,2]
[377916816,1754613141515,-619.45,0.00021917,2]
[377916817,1754613141525,-592.46,0.00021917,2]
[377916818,1754613141535,-838.34,0.00021917,2]
[377916819,1754613141545,-400.0,0.00021917,2]
[377916820,1754613141555,-400.0,0.00021917,2]
[377916821,1754613141565,-400.0,0.00021917,2]
[377916822,1754613141575,-430.58,0.00021917,2]
[377916823,1754613141584,-400.0,0.00021917,2]
[377916824,1754613141594,-400.0,0.00021917,2]
[377916825,1754613141604,-400.0,0.00021917,2]
[377916826,1754613141616,-400.0,0.00021917,2]
[377916827,1754613141626,-887.56,0.00021917,2]
[377916828,1754613141638,-400.0,0.00021917,2]
[377916829,1754613141648,-1086.27,0.00021917,2]
[377916830,1754613141658,-1398.35,0.00021917,2]
[377916831,1754613141668,-1137.31,0.00021917,2]
[377916832,1754613141678,-400.0,0.00021917,2]
[377916833,1754613141688,-488.07,0.00021917,2]
[377916834,1754613141697,-433.15,0.00021917,2]
[377916835,1754613141707,-644.96,0.00021917,2]
[377916836,1754613141716,-969.77,0.00021917,2]
[377916837,1754613141726,-711.54,0.00021917,2]
[377916838,1754613141736,-615.2,0.00021917,2]
[377916839,1754613141746,-1326.15,0.00021917,2]
[377916840,1754613141756,-580.71,0.00021917,2]
[377916841,1754613141766,-745.61,0.00021917,2]
[377916842,1754613141777,-777.93,0.00021917,2]
[377916843,1754613141788,-533.67,0.00021917,2]
[377916844,1754613141798,-400.0,0.00021917,2]
[377916845,1754613141808,-1146.04,0.00021917,2]
[377916846,1754613141818,-400.0,0.00021917,2]
[377916847,1754613141828,-1764.53,0.00021917,2]
[377916848,1754613141838,-678.35,0.00021917,2]
[377916849,1754613141848,-400.0,0.00021917,2]
[377916850,1754613141861,-595.92,0.00021917,2]
[377916851,1754613141873,-400.0,0.00021917,2]
[377916852,1754613141885,-1128.98,0.00021917,2]
[377916853,1754613141896,-1058.02,0.00021917,2]
[377916854,1754613141907,-460.25,0.00021917,2]
[377916855,1754613141918,-467.91,0.00021917,2]
[377916856,1754613141928,-498.62,0.00021917,2]
[377916857,1754613141938,-684.85,0.00021917,2]
[377916858,1754613141950,-1822.08,0.00021917,2]
[377916859,1754613141961,-400.0,0.00021917,2]
[377916860,1754613141971,-519.11,0.00021917,2]
[377916861,1754613141982,-834.5,0.00021917,2]
[377916862,1754613141992,-400.0,0.00021917,2]
[377916863,1754613142002,-400.0,0.00021917,2]
[377916864,1754613142013,-400.0,0.00021917,2]
[377916865,1754613142024,-431.49,0.00021917,2]
[377916866,1754613142035,-400.0,0.00021917,2]
[377916867,1754613142045,-400.0,0.00021917,2]
[377916868,1754613142055,-756.51,0.00021917,2]
[377916869,1754613142065,-474.3,0.00021917,2]
[377916870,1754613142076,-753.02,0.00021917,2]
[377916871,1754613142086,-400.0,0.00021917,2]
[377916872,1754613142096,-400.0,0.00021917,2]
[377916873,1754613142107,-400.0,0.00021917,2]
[377916874,1754613142118,-530.37,0.00021917,2]
[377916875,1754613142129,-1312.14,0.00021917,2]
[377916876,1754613142142,-400.0,0.00021917,2]
[377916877,1754613142152,-664.1,0.00021917,2]
[377916878,1754613142162,-723.03,0.00021917,2]
[377916879,1754613142173,-488.75,0.00021917,2]
[377916880,1754613142183,-753.14,0.00021917,2]
[377916881,1754613142193,-400.0,0.00021917,2]
[377916882,1754613142204,-481.93,0.00021917,2]
[377916883,1754613142214,-1362.2,0.00021917,2]
[377916884,1754613142225,-681.29,0.00021917,2]
[377916885,1754613142236,-1202.92,0.00021917,2]
[377916886,1754613142246,-400.0,0.00021917,2]
[377916887,1754613142256,-908.09,0.00021917,2]
[377916888,1754613142267,-400.0,0.00021917,2]
[377916889,1754613142277,-1356.82,0.00021917,2]
[377916890,1754613142287,-642.93,0.00021917,2]
[377916891,1754613142298,-558.14,0.00021917,2]
[377916892,1754613142308,-343.03462891,0.00021917,2]
[377916893,1754613142318,-473.3,0.00021917,2]
[377916894,1754613142328,-857.38,0.00021917,2]
[377916895,1754613142339,-600.87,0.00021917,2]
[377916896,1754613142349,-1113.28,0.00021917,2]
[377916897,1754613142359,-1063.89,0.00021917,2]
[377916898,1754613142369,-766.74,0.00021917,2]
[377916899,1754613142379,-400.0,0.00021917,2]
[377916900,1754613142390,-702.23,0.00021917,2]
[377916901,1754613142400,-400.0,0.00021917,2]
[377916902,1754613142410,-697.81,0.00021917,2]
[377916903,1754613142420,-593.88,0.00021917,2]
[377916904,1754613142431,-835.59,0.00021917,2]
[377916905,1754613142442,-787.56,0.00021917,2]
[377916906,1754613142454,-1070.57,0.00021917,2]
[377916907,1754613142464,-714.37,0.00021917,2]
[377916908,1754613142475,-565.06,0.00021917,2]
[377916909,1754613142516,-805.74,0.00021917,2]
[377916910,1754613142534,-1013.85,0.00021917,2]
[377916911,1754613142544,-400.0,0.00021917,2]
[377916912,1754613142554,-400.0,0.00021917,2]